[Event "ONJK-C 2019"]
[Site "Borne"]
[Date "2019.08.09"]
[Round "8.5"]
[White "De Rooij, Kevin"]
[Black "Den Heijer, Rolinde"]
[Result "1-0"]
[ECO "E12"]
[WhiteElo "1465"]
[BlackElo "1471"]
[Annotator "NA"]
[PlyCount "105"]
[EventDate "2019.08.05"]
[EventType "swiss"]
[EventCountry "NED"]
[SourceTitle "playchess.com"]
[Source "ChessBase"]
[SourceQuality "1"]
[TimeControl "5400+30"]

1. d4 {[%emt 0:00:00]} Nf6 {[%emt 0:00:00]} 2. c4 {[%emt 0:00:00]} e6 {[%emt 0:00:00]} 3. Nc3 {[%emt 0:00:00]} b6 {[%emt 0:00:00]} 4. Nf3 {[%emt 0:00:00]} Bb7 {[%emt 0:00:18]} 5. Bg5 {[%emt 0:00:22]} Be7 {[%emt 0:00:46]} 6. e3 {[%emt 0:00:58]} O-O {[%emt 0:00:52]} 7. Bd3 {[%emt 0:00:35]} h6 {[%emt 0:00:34]} 8. Bh4 {[%emt 0:01:19]} d6 {[%emt 0:01:21]} 9. b4 {[%emt 0:02:19]} a6 {[%emt 0:04:21]} 10. Rb1 {[%emt 0:01:51]} Nbd7 {[%emt 0:01:15]} 11. O-O {[%emt 0:05:47]} Rb8 {[%emt 0:05:30]} 12. Bg3 {[%emt 0:02:02]} Rc8 {[%emt 0:08:26]} 13. b5 {[%emt 0:04:50]} c6 {[%emt 0:05:22]} 14. a4 {[%emt 0:01:43]} Nh5 {[%emt 0:06:17]} 15. Re1 {[%emt 0:10:47]} Nxg3 {[%emt 0:01:34]} 16. hxg3 {[%emt 0:00:10]} Bf6 {[%emt 0:05:23]} 17. Qd2 {[%emt 0:07:27]} e5 {[%emt 0:08:51]} 18. Bf5 {[%emt 0:04:15]} Ra8 {[%emt 0:05:19]} 19. Bxd7 {[%emt 0:00:48]} exd4 {[%emt 0:03:38]} 20. Nxd4 {[%emt 0:00:48]} Qxd7 {[%emt 0:01:42]} 21. bxc6 {[%emt 0:00:39]} Bxc6 {[%emt 0:00:16]} 22. Rxb6 {[%emt 0:00:21]} Bxa4 {[%emt 0:03:43]} 23. Ra1 {[%emt 0:01:13]} Bxd4 {[%emt 0:00:48]} 24. Qxd4 {[%emt 0:00:25]} Bc6 {[%emt 0:00:24]} 25. Raxa6 {[%emt 0:00:29]} Rxa6 {[%emt 0:00:21]} 26. Rxa6 {[%emt 0:00:04]} Qb7 {[%emt 0:03:22]} 27. Rb6 {[%emt 0:02:14]} Qa8 {[%emt 0:01:02]} 28. Nd5 {[%emt 0:02:03]} Bb7 {[%emt 0:07:09]} 29. Rxd6 {[%emt 0:05:26]} Kh7 {[%emt 0:04:50]} 30. Rd7 {[%emt 0:06:06]} Qa6 {[%emt 0:07:21]} 31. Kh2 {[%emt 0:02:00]} Bc8 {[%emt 0:03:33]} 32. Ra7 {[%emt 0:00:50]} Qc6 {[%emt 0:01:36]} 33. Ne7 {[%emt 0:02:46]} Qe6 {[%emt 0:00:30]} 34. Nxc8 {[%emt 0:00:19]} Rxc8 {[%emt 0:00:25]} 35. Qd5 {[%emt 0:01:38]} Rxc4 {[%emt 0:01:06]} 36. Qd3+ {[%emt 0:00:36]} g6 {[%emt 0:00:53]} 37. Ra8 {[%emt 0:02:08]} Rc8 {[%emt 0:01:28]} 38. Rxc8 {[%emt 0:00:22]} Qxc8 {[%emt 0:00:09]} 39. Qd5 {[%emt 0:00:23]} Kg7 {[%emt 0:00:42]} 40. Qe5+ {[%emt 0:00:15]} Kh7 {[%emt 0:00:25]} 41. Qf6 {[%emt 0:00:09]} Qd7 {[%emt 0:00:36]} 42. e4 {[%emt 0:00:47]} Kg8 {[%emt 0:01:06]} 43. f4 {[%emt 0:00:31]} Kh7 {[%emt 0:00:45]} 44. f5 {[%emt 0:01:37]} gxf5 {[%emt 0:02:49]} 45. Qxf5+ {[%emt 0:00:07]} Qxf5 {[%emt 0:00:09]} 46. exf5 {[%emt 0:00:03]} Kg7 {[%emt 0:01:01]} 47. g4 {[%emt 0:00:16]} Kf6 {[%emt 0:00:06]} 48. Kh3 {[%emt 0:00:43]} Kg5 {[%emt 0:00:07]} 49. Kg3 {[%emt 0:00:16]} f6 {[%emt 0:00:45]} 50. Kf3 {[%emt 0:00:34]} Kh4 {[%emt 0:00:27]} 51. Kf4 {[%emt 0:00:13]} h5 {[%emt 0:00:11]} 52. g3+ {[%emt 0:00:04]} Kh3 {[%emt 0:00:17]} 53. gxh5 {[%emt 0:00:25]} 1-0

[Event "ONJK-C 2019"]
[Site "Borne"]
[Date "2019.08.09"]
[Round "8.6"]
[White "Groen, Jari"]
[Black "De Jong, Mats"]
[Result "1/2-1/2"]
[ECO "C45"]
[WhiteElo "1349"]
[BlackElo "1356"]
[Annotator "NA"]
[PlyCount "67"]
[EventDate "2019.08.05"]
[EventType "swiss"]
[EventCountry "NED"]
[SourceTitle "playchess.com"]
[Source "ChessBase"]
[SourceQuality "1"]
[TimeControl "5400+30"]

1. e4 {[%emt 0:00:00]} e5 {[%emt 0:00:00]} 2. Nf3 {[%emt 0:00:00]} Nc6 {[%emt 0:00:00]} 3. d4 {[%emt 0:00:00]} exd4 {[%emt 0:00:00]} 4. Nxd4 {[%emt 0:00:00]} Bc5 {[%emt 0:00:10]} 5. Be3 {[%emt 0:00:06]} Qf6 {[%emt 0:00:10]} 6. c3 {[%emt 0:00:06]} Nge7 {[%emt 0:00:11]} 7. Bc4 {[%emt 0:00:10]} O-O {[%emt 0:00:38]} 8. O-O {[%emt 0:00:12]} Bxd4 {[%emt 0:04:56]} 9. Bxd4 {[%emt 0:02:38]} Nxd4 {[%emt 0:01:35]} 10. Qxd4 {[%emt 0:00:39]} Qg6 {[%emt 0:01:11]} 11. Nd2 {[%emt 0:01:12]} d6 {[%emt 0:02:39]} 12. f4 {[%emt 0:03:05]} Nc6 {[%emt 0:02:01]} 13. Qe3 {[%emt 0:01:32]} Qf6 {[%emt 0:04:55]} 14. Rae1 {[%emt 0:03:08]} Be6 {[%emt 0:01:35]} 15. Rf3 {[%emt 0:05:16]} Na5 {[%emt 0:03:33]} 16. Bd3 {[%emt 0:04:18]} Nc6 {[%emt 0:02:32]} 17. e5 {[%emt 0:05:37]} dxe5 {[%emt 0:01:11]} 18. fxe5 {[%emt 0:01:02]} Qe7 {[%emt 0:00:29]} 19. Rg3 {[%emt 0:02:48]} Kh8 {[%emt 0:06:12]} 20. Qe4 {[%emt 0:03:24]} g6 {[%emt 0:02:21]} 21. Qf4 {[%emt 0:04:41]} Rae8 {[%emt 0:06:16]} 22. Rge3 {[%emt 0:16:19]} Qc5 {[%emt 0:02:45]} 23. Ne4 {[%emt 0:03:20]} Qxe5 {[%emt 0:02:58]} 24. Qh6 {[%emt 0:04:25]} Qg7 {[%emt 0:06:06]} 25. Qxg7+ {[%emt 0:02:57]} Kxg7 {[%emt 0:00:10]} 26. Nc5 {[%emt 0:00:15]} b6 {[%emt 0:06:40]} 27. Nxe6+ {[%emt 0:01:25]} Rxe6 {[%emt 0:00:51]} 28. Rxe6 {[%emt 0:00:49]} fxe6 {[%emt 0:00:08]} 29. Rxe6 {[%emt 0:00:36]} Rf6 {[%emt 0:01:54]} 30. Re2 {[%emt 0:01:56]} Nd8 {[%emt 0:05:00]} 31. Bc4 {[%emt 0:01:20]} Kf8 {[%emt 0:01:23]} 32. Rd2 {[%emt 0:01:45]} Ke7 {[%emt 0:00:47]} 33. g3 {[%emt 0:03:54]} Nf7 {[%emt 0:01:58]} 34. Bxf7 {[%emt 0:01:37]} 1/2-1/2

[Event "ONJK-C 2019"]
[Site "Borne"]
[Date "2019.08.09"]
[Round "8.7"]
[White "Goudriaan, Rafael"]
[Black "Malfliet, Alexander"]
[Result "0-1"]
[ECO "D00"]
[WhiteElo "1719"]
[BlackElo "1491"]
[Annotator "NA"]
[PlyCount "72"]
[EventDate "2019.08.05"]
[EventType "swiss"]
[EventCountry "NED"]
[SourceTitle "playchess.com"]
[Source "ChessBase"]
[SourceQuality "1"]
[TimeControl "5400+30"]

1. d4 {[%emt 0:00:00]} d5 {[%emt 0:00:00]} 2. e4 {[%emt 0:00:00]} dxe4 {[%emt 0:11:30]} 3. Nc3 {[%emt 0:00:00]} Nf6 {[%emt 0:00:18]} 4. f3 {[%emt 0:00:01]} exf3 {[%emt 0:03:51]} 5. Qxf3 {[%emt 0:00:12]} e6 {[%emt 0:00:31]} 6. Be3 {[%emt 0:01:20]} Nc6 {[%emt 0:00:17]} 7. O-O-O {[%emt 0:00:25]} Bb4 {[%emt 0:00:21]} 8. d5 {[%emt 0:00:50]} Ne5 {[%emt 0:00:43]} 9. Qg3 {[%emt 0:00:44]} Bxc3 {[%emt 0:06:23]} 10. bxc3 {[%emt 0:00:06]} Ng6 {[%emt 0:00:30]} 11. dxe6 {[%emt 0:00:32]} Qe7 {[%emt 0:00:25]} 12. exf7+ {[%emt 0:00:04]} Kxf7 {[%emt 0:00:09]} 13. Bc4+ {[%emt 0:01:55]} Be6 {[%emt 0:03:54]} 14. Bxe6+ {[%emt 0:00:18]} Kxe6 {[%emt 0:01:11]} 15. Ne2 {[%emt 0:01:27]} Rhd8 {[%emt 0:02:29]} 16. Nd4+ {[%emt 0:00:55]} Kf7 {[%emt 0:00:33]} 17. h4 {[%emt 0:00:18]} Qa3+ {[%emt 0:07:27]} 18. Kb1 {[%emt 0:00:13]} Nd5 {[%emt 0:00:14]} 19. Rhf1+ {[%emt 0:01:32]} Kg8 {[%emt 0:00:30]} 20. Nb5 {[%emt 0:04:57]} Qa5 {[%emt 0:03:59]} 21. Rxd5 {[%emt 0:04:46]} Rxd5 {[%emt 0:03:40]} 22. Nxc7 {[%emt 0:00:09]} Rad8 {[%emt 0:00:54]} 23. Bd4 {[%emt 0:02:56]} Rb5+ {[%emt 0:00:58]} 24. Ka1 {[%emt 0:00:38]} Rh5 {[%emt 0:06:26]} 25. Ne6 {[%emt 0:01:01]} Qa6 {[%emt 0:03:41]} 26. Re1 {[%emt 0:00:43]} Ra5 {[%emt 0:01:10]} 27. c4 {[%emt 0:02:17]} Rd6 {[%emt 0:08:52]} 28. Qc3 {[%emt 0:05:21]} Rxa2+ {[%emt 0:06:36]} 29. Kb1 {[%emt 0:00:06]} Ra3 {[%emt 0:00:14]} 30. Qb2 {[%emt 0:01:04]} Qa5 {[%emt 0:01:16]} 31. Re2 {[%emt 0:04:18]} Ra6 {[%emt 0:04:09]} 32. Ng5 {[%emt 0:01:39]} Qd8 {[%emt 0:01:44]} 33. Qxb7 {[%emt 0:03:30]} Ra1+ {[%emt 0:02:25]} 34. Bxa1 {[%emt 0:02:06]} Qd1+ {[%emt 0:00:06]} 35. Kb2 {[%emt 0:00:16]} Qxa1+ {[%emt 0:00:04]} 36. Kb3 {[%emt 0:00:07]} Qa3# {[%emt 0:00:35]} 0-1

[Event "ONJK-C 2019"]
[Site "Borne"]
[Date "2019.08.09"]
[Round "8.8"]
[White "Arnold, Lorin"]
[Black "Tiggelman, Vincent"]
[Result "1-0"]
[ECO "D00"]
[WhiteElo "1583"]
[BlackElo "1358"]
[Annotator "NA"]
[PlyCount "85"]
[EventDate "2019.08.05"]
[EventType "swiss"]
[EventCountry "NED"]
[SourceTitle "playchess.com"]
[Source "ChessBase"]
[SourceQuality "1"]
[TimeControl "5400+30"]

1. d4 {[%emt 0:00:00]} c6 {[%emt 0:00:00]} 2. e3 {[%emt 0:00:00]} d5 {[%emt 0:00:00]} 3. f4 {[%emt 0:00:00]} Nf6 {[%emt 0:00:10]} 4. Nf3 {[%emt 0:00:00]} Bg4 {[%emt 0:01:18]} 5. Bd3 {[%emt 0:00:05]} e6 {[%emt 0:01:05]} 6. O-O {[%emt 0:00:05]} Nbd7 {[%emt 0:01:02]} 7. Nbd2 {[%emt 0:00:06]} Be7 {[%emt 0:03:14]} 8. Qe1 {[%emt 0:00:05]} Bxf3 {[%emt 0:01:54]} 9. Nxf3 {[%emt 0:00:11]} Qc7 {[%emt 0:08:16]} 10. Ne5 {[%emt 0:00:09]} Nxe5 {[%emt 0:03:35]} 11. fxe5 {[%emt 0:00:04]} Nd7 {[%emt 0:00:31]} 12. a4 {[%emt 0:00:47]} f6 {[%emt 0:02:13]} 13. Qg3 {[%emt 0:05:41]} g6 {[%emt 0:01:40]} 14. exf6 {[%emt 0:02:17]} Qxg3 {[%emt 0:03:49]} 15. f7+ {[%emt 0:00:39]} Kf8 {[%emt 0:01:16]} 16. hxg3 {[%emt 0:00:50]} Nf6 {[%emt 0:00:34]} 17. e4 {[%emt 0:07:38]} h5 {[%emt 0:01:39]} 18. e5 {[%emt 0:00:10]} Ne4 {[%emt 0:01:52]} 19. Bxe4 {[%emt 0:05:21]} dxe4 {[%emt 0:00:23]} 20. b3 {[%emt 0:00:51]} Rd8 {[%emt 0:03:13]} 21. c3 {[%emt 0:00:11]} Rh7 {[%emt 0:00:18]} 22. Ba3 {[%emt 0:00:05]} Bxa3 {[%emt 0:00:54]} 23. Rxa3 {[%emt 0:00:04]} Rxf7 {[%emt 0:00:07]} 24. Raa1 {[%emt 0:00:18]} Rdd7 {[%emt 0:00:51]} 25. Rxf7+ {[%emt 0:01:49]} Rxf7 {[%emt 0:00:28]} 26. Rf1 {[%emt 0:00:15]} Rxf1+ {[%emt 0:00:57]} 27. Kxf1 {[%emt 0:00:06]} g5 {[%emt 0:00:08]} 28. Ke2 {[%emt 0:00:20]} Ke7 {[%emt 0:00:15]} 29. Ke3 {[%emt 0:00:18]} Kd7 {[%emt 0:00:08]} 30. Kxe4 {[%emt 0:00:27]} Kc7 {[%emt 0:00:23]} 31. c4 {[%emt 0:02:30]} b5 {[%emt 0:03:12]} 32. axb5 {[%emt 0:02:22]} cxb5 {[%emt 0:00:46]} 33. d5 {[%emt 0:02:48]} bxc4 {[%emt 0:01:12]} 34. d6+ {[%emt 0:00:57]} Kc6 {[%emt 0:03:07]} 35. bxc4 {[%emt 0:00:15]} a6 {[%emt 0:00:40]} 36. Kd4 {[%emt 0:00:04]} Kb6 {[%emt 0:00:08]} 37. c5+ {[%emt 0:00:13]} Kc6 {[%emt 0:00:09]} 38. Kc4 {[%emt 0:00:05]} Kb7 {[%emt 0:00:28]} 39. Kb4 {[%emt 0:00:05]} Kc6 {[%emt 0:00:06]} 40. Ka5 {[%emt 0:00:11]} Kb7 {[%emt 0:00:20]} 41. Ka4 {[%emt 0:00:21]} Kc6 {[%emt 0:00:40]} 42. Kb4 {[%emt 0:00:13]} Kb7 {[%emt 0:00:21]} 43. Ka5 {[%emt 0:00:04]} 1-0

[Event "ONJK-C 2019"]
[Site "Borne"]
[Date "2019.08.09"]
[Round "8.9"]
[White "Wierenga, Jael"]
[Black "Boeren, Jurriaan"]
[Result "1-0"]
[ECO "A52"]
[WhiteElo "1469"]
[BlackElo "1522"]
[Annotator "NA"]
[PlyCount "105"]
[EventDate "2019.08.05"]
[EventType "swiss"]
[EventCountry "NED"]
[SourceTitle "playchess.com"]
[Source "ChessBase"]
[SourceQuality "1"]
[TimeControl "5400+30"]

1. d4 {[%emt 0:00:00]} Nf6 {[%emt 0:00:00]} 2. c4 {[%emt 0:00:00]} e5 {[%emt 0:00:00]} 3. dxe5 {[%emt 0:00:00]} Ng4 {[%emt 0:00:00]} 4. Bf4 {[%emt 0:00:00]} Nc6 {[%emt 0:00:00]} 5. Nf3 {[%emt 0:00:00]} Bb4+ {[%emt 0:00:00]} 6. Nbd2 {[%emt 0:00:10]} Qe7 {[%emt 0:00:00]} 7. e3 {[%emt 0:00:31]} Ngxe5 {[%emt 0:00:29]} 8. Be2 {[%emt 0:00:50]} d6 {[%emt 0:00:37]} 9. O-O {[%emt 0:01:26]} Bf5 {[%emt 0:00:35]} 10. a3 {[%emt 0:01:39]} Ba5 {[%emt 0:01:10]} 11. b4 {[%emt 0:01:34]} Bb6 {[%emt 0:01:12]} 12. Nxe5 {[%emt 0:03:53]} Nxe5 {[%emt 0:00:33]} 13. Nf3 {[%emt 0:03:42]} O-O {[%emt 0:00:57]} 14. Nd4 {[%emt 0:07:51]} Bg6 {[%emt 0:01:59]} 15. Nf3 {[%emt 0:07:08]} Rfd8 {[%emt 0:01:29]} 16. Qb3 {[%emt 0:02:01]} c6 {[%emt 0:06:53]} 17. Rac1 {[%emt 0:06:03]} a5 {[%emt 0:03:45]} 18. Rfd1 {[%emt 0:04:08]} Bc7 {[%emt 0:04:40]} 19. Bg3 {[%emt 0:05:43]} f6 {[%emt 0:09:31]} 20. Nd4 {[%emt 0:09:01]} Kh8 {[%emt 0:07:49]} 21. f4 {[%emt 0:04:05]} Nd7 {[%emt 0:03:33]} 22. Bg4 {[%emt 0:07:51]} Nf8 {[%emt 0:03:49]} 23. b5 {[%emt 0:04:44]} c5 {[%emt 0:01:19]} 24. Ne2 {[%emt 0:05:43]} Re8 {[%emt 0:04:10]} 25. Kf2 {[%emt 0:01:32]} b6 {[%emt 0:03:40]} 26. Re1 {[%emt 0:04:38]} Rad8 {[%emt 0:03:11]} 27. Nc3 {[%emt 0:00:58]} f5 {[%emt 0:03:20]} 28. Nd5 {[%emt 0:01:37]} Qd7 {[%emt 0:01:45]} 29. Bf3 {[%emt 0:01:15]} Bf7 {[%emt 0:02:23]} 30. Bh4 {[%emt 0:00:57]} Rc8 {[%emt 0:00:56]} 31. Qc3 {[%emt 0:04:58]} Bd8 {[%emt 0:01:44]} 32. Bxd8 {[%emt 0:02:19]} Qxd8 {[%emt 0:00:22]} 33. Rg1 {[%emt 0:00:50]} Be6 {[%emt 0:01:07]} 34. h3 {[%emt 0:01:14]} Rb8 {[%emt 0:00:28]} 35. g4 {[%emt 0:01:53]} fxg4 {[%emt 0:00:55]} 36. hxg4 {[%emt 0:01:13]} Ng6 {[%emt 0:03:19]} 37. Qd3 {[%emt 0:01:58]} Bxd5 {[%emt 0:01:32]} 38. Bxd5 {[%emt 0:00:45]} Qf6 {[%emt 0:01:31]} 39. Rh1 {[%emt 0:03:19]} h6 {[%emt 0:02:01]} 40. g5 {[%emt 0:00:47]} Qe7 {[%emt 0:00:51]} 41. Rh3 {[%emt 0:00:14]} Nf8 {[%emt 0:00:53]} 42. Rch1 {[%emt 0:00:17]} Rbc8 {[%emt 0:01:29]} 43. gxh6 {[%emt 0:00:14]} g6 {[%emt 0:00:09]} 44. Qc3+ {[%emt 0:00:13]} Kh7 {[%emt 0:00:16]} 45. Rg3 {[%emt 0:00:55]} Rc7 {[%emt 0:01:16]} 46. f5 {[%emt 0:00:19]} Ra7 {[%emt 0:01:21]} 47. fxg6+ {[%emt 0:00:17]} Nxg6 {[%emt 0:00:10]} 48. Rhg1 {[%emt 0:00:52]} Ne5 {[%emt 0:00:51]} 49. Rg7+ {[%emt 0:00:09]} Qxg7 {[%emt 0:00:27]} 50. Rxg7+ {[%emt 0:00:42]} Rxg7 {[%emt 0:00:09]} 51. hxg7 {[%emt 0:00:01]} Ng4+ {[%emt 0:00:24]} 52. Kf3 {[%emt 0:01:03]} Ne5+ {[%emt 0:00:18]} 53. Ke2 {[%emt 0:00:48]} 1-0

[Event "ONJK-C 2019"]
[Site "Borne"]
[Date "2019.08.09"]
[Round "8.10"]
[White "Ang, Rufus"]
[Black "De Putter, Sven"]
[Result "0-1"]
[ECO "D53"]
[WhiteElo "1498"]
[BlackElo "1319"]
[Annotator "NA"]
[PlyCount "54"]
[EventDate "2019.08.05"]
[EventType "swiss"]
[EventCountry "NED"]
[SourceTitle "playchess.com"]
[Source "ChessBase"]
[SourceQuality "1"]
[TimeControl "5400+30"]

1. d4 {[%emt 0:00:00]} d5 {[%emt 0:00:00]} 2. c4 {[%emt 0:00:00]} e6 {[%emt 0:00:00]} 3. Nc3 {[%emt 0:00:00]} Nf6 {[%emt 0:00:00]} 4. Bg5 {[%emt 0:00:00]} Be7 {[%emt 0:00:34]} 5. Nf3 {[%emt 0:00:00]} h6 {[%emt 0:04:22]} 6. Bh4 {[%emt 0:01:10]} c5 {[%emt 0:00:52]} 7. e3 {[%emt 0:03:40]} Nc6 {[%emt 0:00:35]} 8. Be2 {[%emt 0:00:17]} O-O {[%emt 0:00:59]} 9. O-O {[%emt 0:00:22]} b6 {[%emt 0:07:34]} 10. h3 {[%emt 0:02:56]} Bb7 {[%emt 0:00:53]} 11. Nh2 {[%emt 0:00:27]} dxc4 {[%emt 0:02:51]} 12. Bxc4 {[%emt 0:00:54]} cxd4 {[%emt 0:01:30]} 13. exd4 {[%emt 0:05:13]} Qxd4 {[%emt 0:02:30]} 14. Qxd4 {[%emt 0:00:19]} Nxd4 {[%emt 0:00:09]} 15. Bg3 {[%emt 0:01:16]} Rfd8 {[%emt 0:08:37]} 16. Rfd1 {[%emt 0:02:28]} Rac8 {[%emt 0:03:34]} 17. Bb3 {[%emt 0:01:35]} Nxb3 {[%emt 0:02:33]} 18. axb3 {[%emt 0:00:12]} Rxd1+ {[%emt 0:01:11]} 19. Rxd1 {[%emt 0:00:12]} Rd8 {[%emt 0:02:44]} 20. Ra1 {[%emt 0:00:29]} a6 {[%emt 0:02:33]} 21. Bc7 {[%emt 0:01:40]} Rd2 {[%emt 0:02:30]} 22. Bxb6 {[%emt 0:05:23]} Rxb2 {[%emt 0:00:36]} 23. Rb1 {[%emt 0:00:25]} Rxb1+ {[%emt 0:00:32]} 24. Nxb1 {[%emt 0:00:11]} Bd6 {[%emt 0:04:44]} 25. Nc3 {[%emt 0:00:56]} Nd5 {[%emt 0:02:24]} 26. Ne4 {[%emt 0:07:13]} Bxh2+ {[%emt 0:00:31]} 27. Kxh2 {[%emt 0:00:49]} Nxb6 {[%emt 0:00:15]} 0-1

[Event "ONJK-C 2019"]
[Site "Borne"]
[Date "2019.08.09"]
[Round "8.11"]
[White "Vleming, Annabel"]
[Black "Van Doren, Frodo"]
[Result "0-1"]
[ECO "D46"]
[WhiteElo "1334"]
[BlackElo "1433"]
[Annotator "NA"]
[PlyCount "70"]
[EventDate "2019.08.05"]
[EventType "swiss"]
[EventCountry "NED"]
[SourceTitle "playchess.com"]
[Source "ChessBase"]
[SourceQuality "1"]
[TimeControl "5400+30"]

1. d4 {[%emt 0:00:00]} d5 {[%emt 0:00:00]} 2. c4 {[%emt 0:00:00]} c6 {[%emt 0:00:00]} 3. Nc3 {[%emt 0:00:00]} Nf6 {[%emt 0:00:00]} 4. e3 {[%emt 0:00:18]} e6 {[%emt 0:06:37]} 5. Nf3 {[%emt 0:01:58]} Bd6 {[%emt 0:02:12]} 6. Bd3 {[%emt 0:01:45]} O-O {[%emt 0:00:51]} 7. O-O {[%emt 0:01:14]} Nbd7 {[%emt 0:02:38]} 8. Nd2 {[%emt 0:03:59]} c5 {[%emt 0:03:36]} 9. cxd5 {[%emt 0:04:31]} exd5 {[%emt 0:02:04]} 10. f3 {[%emt 0:09:13]} Qc7 {[%emt 0:08:07]} 11. f4 {[%emt 0:02:02]} a6 {[%emt 0:02:01]} 12. Nf3 {[%emt 0:01:55]} cxd4 {[%emt 0:00:49]} 13. Nxd4 {[%emt 0:00:42]} Nc5 {[%emt 0:03:06]} 14. Bc2 {[%emt 0:02:41]} Bg4 {[%emt 0:04:57]} 15. Nf3 {[%emt 0:02:18]} Rad8 {[%emt 0:09:24]} 16. h3 {[%emt 0:03:11]} Bc8 {[%emt 0:12:56]} 17. Ng5 {[%emt 0:19:12]} h6 {[%emt 0:03:16]} 18. Nf3 {[%emt 0:10:23]} Rfe8 {[%emt 0:04:04]} 19. Nd4 {[%emt 0:02:38]} Ne6 {[%emt 0:01:45]} 20. Nf5 {[%emt 0:07:58]} Bc5 {[%emt 0:08:20]} 21. Qf3 {[%emt 0:03:02]} d4 {[%emt 0:02:05]} 22. Ne4 {[%emt 0:03:02]} Nxe4 {[%emt 0:04:38]} 23. Bxe4 {[%emt 0:00:09]} dxe3 {[%emt 0:01:48]} 24. Bxe3 {[%emt 0:00:33]} Bxe3+ {[%emt 0:01:22]} 25. Nxe3 {[%emt 0:00:28]} Nd4 {[%emt 0:01:27]} 26. Qf2 {[%emt 0:02:15]} Rxe4 {[%emt 0:00:37]} 27. f5 {[%emt 0:01:43]} Rf4 {[%emt 0:01:13]} 28. Qd2 {[%emt 0:01:03]} Nf3+ {[%emt 0:01:19]} 29. Rxf3 {[%emt 0:00:49]} Rxd2 {[%emt 0:01:20]} 30. Raf1 {[%emt 0:00:56]} Rxf3 {[%emt 0:00:00]} 31. Rxf3 {[%emt 0:00:09]} Qc1+ {[%emt 0:00:38]} 32. Rf1 {[%emt 0:00:11]} Qc5 {[%emt 0:00:31]} 33. Re1 {[%emt 0:01:02]} Rd3 {[%emt 0:00:26]} 34. Kf2 {[%emt 0:00:29]} Rd2+ {[%emt 0:00:27]} 35. Kf3 {[%emt 0:01:53]} Bxf5 {[%emt 0:00:57]} 0-1

[Event "ONJK-C 2019"]
[Site "Borne"]
[Date "2019.08.09"]
[Round "8.12"]
[White "Knol, Daniel"]
[Black "Yannopapas, Leontios"]
[Result "0-1"]
[ECO "A11"]
[WhiteElo "1622"]
[BlackElo "1428"]
[Annotator "NA"]
[PlyCount "66"]
[EventDate "2019.08.05"]
[EventType "swiss"]
[EventCountry "NED"]
[SourceTitle "playchess.com"]
[Source "ChessBase"]
[SourceQuality "1"]
[TimeControl "5400+30"]

1. Nf3 {[%emt 0:00:00]} Nf6 {[%emt 0:00:17]} 2. c4 {[%emt 0:00:00]} c6 {[%emt 0:00:17]} 3. g3 {[%emt 0:00:00]} d5 {[%emt 0:00:32]} 4. cxd5 {[%emt 0:00:00]} cxd5 {[%emt 0:00:09]} 5. Bg2 {[%emt 0:00:00]} Nc6 {[%emt 0:00:53]} 6. O-O {[%emt 0:00:03]} e5 {[%emt 0:00:29]} 7. d3 {[%emt 0:00:09]} Be7 {[%emt 0:01:02]} 8. Nbd2 {[%emt 0:00:23]} O-O {[%emt 0:00:34]} 9. e4 {[%emt 0:00:51]} dxe4 {[%emt 0:00:19]} 10. dxe4 {[%emt 0:00:13]} Qc7 {[%emt 0:00:57]} 11. a3 {[%emt 0:01:21]} Rd8 {[%emt 0:01:03]} 12. b4 {[%emt 0:00:09]} Bg4 {[%emt 0:01:13]} 13. Qc2 {[%emt 0:01:52]} Rac8 {[%emt 0:02:58]} 14. Bb2 {[%emt 0:08:27]} Bd6 {[%emt 0:06:51]} 15. Rac1 {[%emt 0:00:34]} a6 {[%emt 0:01:11]} 16. h3 {[%emt 0:07:16]} Bxf3 {[%emt 0:00:54]} 17. Nxf3 {[%emt 0:00:09]} Qe7 {[%emt 0:01:32]} 18. Qe2 {[%emt 0:00:51]} Na7 {[%emt 0:04:07]} 19. Nh4 {[%emt 0:07:28]} g6 {[%emt 0:04:12]} 20. Qe3 {[%emt 0:01:49]} Nc6 {[%emt 0:03:44]} 21. Nf3 {[%emt 0:17:45]} Bb8 {[%emt 0:02:50]} 22. Rfd1 {[%emt 0:02:48]} Kg7 {[%emt 0:02:13]} 23. Qe2 {[%emt 0:17:17]} Kg8 {[%emt 0:08:56]} 24. Nh2 {[%emt 0:14:13]} Ba7 {[%emt 0:01:27]} 25. Ng4 {[%emt 0:00:28]} Nd4 {[%emt 0:04:32]} 26. Nxf6+ {[%emt 0:01:52]} Qxf6 {[%emt 0:00:15]} 27. Bxd4 {[%emt 0:00:48]} Bxd4 {[%emt 0:00:25]} 28. Rc2 {[%emt 0:01:08]} Rxc2 {[%emt 0:01:42]} 29. Qxc2 {[%emt 0:00:06]} Qxf2+ {[%emt 0:00:36]} 30. Qxf2 {[%emt 0:00:12]} Bxf2+ {[%emt 0:00:07]} 31. Kxf2 {[%emt 0:00:04]} Rxd1 {[%emt 0:00:06]} 32. Bf1 {[%emt 0:00:47]} Ra1 {[%emt 0:00:34]} 33. Kf3 {[%emt 0:00:44]} Rxf1+ {[%emt 0:00:10]} 0-1

[Event "ONJK-C 2019"]
[Site "Borne"]
[Date "2019.08.09"]
[Round "8.13"]
[White "De Heij, Mees"]
[Black "Molanus, Florian"]
[Result "1/2-1/2"]
[ECO "B72"]
[WhiteElo "1545"]
[BlackElo "1287"]
[Annotator "NA"]
[PlyCount "42"]
[EventDate "2019.08.05"]
[EventType "swiss"]
[EventCountry "NED"]
[SourceTitle "playchess.com"]
[Source "ChessBase"]
[SourceQuality "1"]
[TimeControl "5400+30"]

1. e4 {[%emt 0:00:00]} c5 {[%emt 0:00:00]} 2. Nf3 {[%emt 0:00:00]} d6 {[%emt 0:00:00]} 3. d4 {[%emt 0:00:00]} cxd4 {[%emt 0:00:00]} 4. Nxd4 {[%emt 0:00:00]} Nf6 {[%emt 0:00:00]} 5. Nc3 {[%emt 0:00:02]} g6 {[%emt 0:00:05]} 6. Bc4 {[%emt 0:01:06]} Bg7 {[%emt 0:00:14]} 7. Be3 {[%emt 0:00:23]} Ng4 {[%emt 0:01:19]} 8. Qf3 {[%emt 0:15:25]} O-O {[%emt 0:03:25]} 9. Rb1 {[%emt 0:08:00]} Nxe3 {[%emt 0:01:01]} 10. Qxe3 {[%emt 0:02:16]} Qb6 {[%emt 0:02:20]} 11. Nce2 {[%emt 0:15:38]} e5 {[%emt 0:03:37]} 12. Nb5 {[%emt 0:00:35]} Qxe3 {[%emt 0:00:19]} 13. fxe3 {[%emt 0:00:03]} Nc6 {[%emt 0:00:48]} 14. Nxd6 {[%emt 0:00:32]} Bh6 {[%emt 0:00:36]} 15. h3 {[%emt 0:16:41]} Bxe3 {[%emt 0:03:38]} 16. Nxf7 {[%emt 0:01:08]} Rxf7 {[%emt 0:00:49]} 17. Rf1 {[%emt 0:00:10]} Nd8 {[%emt 0:00:17]} 18. Rd1 {[%emt 0:00:28]} Be6 {[%emt 0:00:36]} 19. Rxd8+ {[%emt 0:01:38]} Rxd8 {[%emt 0:00:13]} 20. Bxe6 {[%emt 0:00:11]} Bd2+ {[%emt 0:00:11]} 21. Kd1 {[%emt 0:00:42]} Be3+ {[%emt 0:00:23]} 1/2-1/2